[Event "II Duchamp Open 2018"]
[Site "Rio de Janeiro"]
[Date "2018.11.17"]
[Round "4"]
[White "Chang, Suzana"]
[Black "Santos Filho, Tadeu Sousa"]
[Result "0-1"]
[ECO "A81"]
[WhiteElo "1968"]
[BlackElo "2078"]
[Annotator "NA RC"]
[PlyCount "134"]
[EventDate "2018.11.14"]
[EventType "swiss"]
[EventCountry "BRA"]
[SourceTitle "playchess.com"]
[Source "ChessBase"]
[SourceQuality "1"]
[TimeControl "5400+30"]

1. d4 {[%emt 0:00:09]} e6 {[%emt 0:01:39]} 2. g3 {[%emt 0:00:38]} f5 {[%emt 0:00:06]} 3. Bg2 {[%emt 0:00:08]} Nf6 {[%emt 0:00:04]} 4. Nh3 {[%emt 0:02:46]} d5 {[%emt 0:01:27]} 5. O-O {[%emt 0:00:05]} Bd6 {[%emt 0:00:17]} 6. c4 {[%emt 0:00:18]} c6 {[%emt 0:00:06]} 7. Qc2 {[%emt 0:00:06]} O-O {[%emt 0:00:12]} 8. Bf4 {[%emt 0:00:03]} Be7 {[%emt 0:04:05]} 9. Nd2 {[%emt 0:01:09]} Nh5 {[%emt 0:01:52] A90: Dutch Defence: Miscellaneous and Modern Stonewall (with ...Bd6)} (9... h6 10. Bxb8 Rxb8 11. Nf4 Qe8 12. Nd3 b6 13. b4 Ne4 14. Nf3 Ba6 15. Nfe5 Bf6 16. c5 Bxd3 17. exd3 Ng5 18. f4 Nf7 19. Qa4 Nxe5 20. dxe5 Be7 21. d4 a5 22. a3 b5 23. Qc2 a4 {½-½ (23) Kuybokarov,T (2499)-Maghsoodloo,P (2636) Abu Dhabi 2018}) 10. e3 {[%emt 0:16:18]} g5 {[%emt 0:15:50]} 11. Be5 {[%emt 0:08:58]} Nd7 {[%emt 0:02:47]} 12. f4 {[%emt 0:01:05]} g4 {[%emt 0:03:21]} 13. Nf2 {[%emt 0:00:27]} Bf6 $146 {[%emt 0:11:33]} ({Predecessor:} 13... Nxe5 14. fxe5 Bd7 15. Nd3 Ng7 16. Rac1 h5 17. Nf4 {½-½ (42) Christensen,T (2225)-Rathlev,J (2231) Denmark 2017}) 14. Rac1 {[%emt 0:15:39]} Ng7 {[%emt 0:06:53]} 15. b4 {[%emt 0:06:10]} h5 {[%emt 0:02:56]} 16. b5 {[%emt 0:04:06]} h4 {[%emt 0:00:35]} 17. cxd5 {[%emt 0:10:21]} cxd5 {[%emt 0:03:56]} 18. Rfe1 {[%emt 0:05:25]} hxg3 {[%emt 0:06:45]} 19. hxg3 {[%emt 0:00:03]} Nh5 {[%emt 0:00:09]} 20. Nf1 {[%emt 0:00:13]} Nb6 {[%emt 0:05:05]} (20... Nxe5 $15 21. fxe5 (21. dxe5 Be7 $15) 21... Be7) 21. Bc7 {[%emt 0:10:55]} Qe8 {[%emt 0:03:38]} 22. Bxb6 {[%emt 0:00:41]} axb6 {[%emt 0:00:25]} 23. a4 {[%emt 0:00:43]} Rf7 {[%emt 0:05:42]} 24. Qb3 {[%emt 0:01:19]} Be7 {[%emt 0:02:43]} 25. Rc2 {[%emt 0:01:30]} Bd6 {[%emt 0:00:10]} 26. Rec1 {[%emt 0:00:07]} Bd7 {[%emt 0:01:56]} 27. Nd3 {[%emt 0:00:13]} Rf8 {[%emt 0:01:49]} 28. Kf2 {[%emt 0:00:27]} Kg7 {[%emt 0:01:02]} 29. Ne5 {[%emt 0:01:38]} Qd8 {[%emt 0:00:32]} 30. Nd3 {[%emt 0:02:24]} Rh8 {[%emt 0:03:03]} 31. Ne5 {[%emt 0:00:38]} Qe7 {[%emt 0:05:23]} 32. Nd3 {[%emt 0:00:35]} Ra7 {[%emt 0:01:04]} 33. Ne5 {[%emt 0:02:32]} Rha8 {[%emt 0:00:29]} 34. Ra2 {[%emt 0:01:52]} Rh8 {[%emt 0:01:04]} 35. Rac2 {[%emt 0:00:12]} Rha8 {[%emt 0:00:22]} 36. Ra2 {[%emt 0:00:01]} Qe8 {[%emt 0:00:10]} 37. Rcc2 {[%emt 0:00:52]} Qe7 {[%emt 0:01:14]} 38. Rc1 {[%emt 0:00:32]} Ra5 {[%emt 0:00:25]} 39. Rcc2 {[%emt 0:00:02]} Rh8 {[%emt 0:00:45]} 40. Rc1 {[%emt 0:00:36]} Rha8 {[%emt 0:02:41]} 41. Rcc2 {[%emt 0:00:02]} Qe8 {[%emt 0:00:16]} 42. Kg1 {[%emt 0:00:49]} R8a7 {[%emt 0:01:23]} 43. Kf2 {[%emt 0:01:00]} Nf6 {[%emt 0:00:13]} 44. Kg1 {[%emt 0:00:55]} Qa8 {[%emt 0:00:43]} 45. Nxd7 {[%emt 0:03:59]} Nxd7 {[%emt 0:00:59] [#]} 46. Bxd5 $1 {[%emt 0:00:17]} exd5 {[%emt 0:01:26]} 47. Qxd5 {[%emt 0:00:03]} Qf8 {[%emt 0:00:27]} 48. e4 {[%emt 0:01:12]} fxe4 {[%emt 0:01:25]} 49. Rh2 {[%emt 0:03:15]} Nf6 {[%emt 0:01:27] [#]} 50. Qg5+ $2 {[%emt 0:00:48]} ({White must play} 50. Qf5 $1 $18 Bc5 51. Kh1 (51. dxc5 Qxc5+ 52. Qxc5 bxc5 $15)) 50... Kf7 {[%emt 0:00:36] [#]} 51. Rac2 $2 {[%emt 0:00:20] [#]} (51. Nd2 $1 $16 {[%cal Rd2e4] is forced if you want to stay better.} Qg7 {[#]} 52. Nxe4 $1 {[%mdl 512]} Qxg5 53. Nxd6+ Kg8 54. fxg5) 51... Rxa4 {[%emt 0:01:06]} (51... Qg7 $1 $17 52. Ne3 Rxa4 53. Qxg7+ Kxg7 54. Nf5+ Kg6 55. Nxd6 Rxd4) 52. Qf5 {[%emt 0:00:09]} Ra8 $2 {[%emt 0:00:45]} (52... Qg7 $11 {and Black stays safe.} 53. d5 Bc5+ 54. Rxc5 bxc5) 53. Rh7+ $1 {[%emt 0:00:31]} Qg7 {[%emt 0:01:15]} 54. Rxg7+ {[%emt 0:00:26]} Kxg7 {[%emt 0:00:04]} 55. Qe6 {[%emt 0:01:08]} Rxd4 {[%emt 0:00:36]} 56. Qf5 $2 {[%emt 0:00:31]} ({White must play} 56. Ne3 $18 Bc5 57. Nf5+ Kg6 58. Nxd4 Bxd4+ 59. Kh2) 56... Bc5 {[%emt 0:00:41]} ({Black should play} 56... Rd5 $17 57. Ne3 Bc5 58. Rxc5 Ra1+ 59. Kh2 Rd2+ 60. Ng2 bxc5 61. Qg5+ Kf7) 57. Qg5+ {[%emt 0:00:01]} Kf7 {[%emt 0:00:25]} 58. Kg2 {[%emt 0:00:12]} Ra1 $2 {[%emt 0:00:34]} (58... Rg8 $11 59. Qe5 Rd5 60. Qc7+ Rd7 61. Rxc5 bxc5 62. Qxc5 Ra8) 59. f5 {[%emt 0:00:07]} Rdd1 $2 {[%emt 0:00:24]} (59... Rd6 60. Ne3 Ke8) 60. Qg6+ {[%emt 0:00:12]} Kf8 $2 {[%emt 0:01:05]} (60... Ke7 61. Qg7+ Ke8 62. Qxf6 Rxf1 63. Qe6+ Kf8 64. Qxe4 Rh1 65. Qxg4 Rag1+ 66. Kf3 Rf1+ 67. Ke4 Rd1) 61. Qxf6+ {[%emt 0:00:14]} Ke8 {[%emt 0:00:23]} 62. Qe6+ {[%emt 0:01:21]} Kd8 {[%emt 0:00:15]} 63. Rd2+ $18 {[%emt 0:01:18]} Rxd2+ {[%emt 0:00:48]} 64. Nxd2 {[%emt 0:00:01]} e3 {[%emt 0:00:32]} 65. Nf1 {[%emt 0:01:02]} Re1 {[%emt 0:00:30]} 66. f6 {[%emt 0:00:35]} e2 {[%emt 0:00:13]} 67. Nd2 {[%emt 0:00:25]} Rg1+ {[%emt 0:00:19]} 0-1

[Event "II Duchamp Open 2018"]
[Site "Rio de Janeiro"]
[Date "2018.11.17"]
[Round "4"]
[White "Ramos, Angelo Bil"]
[Black "Okamura, Milton Kasuo"]
[Result "1-0"]
[ECO "B47"]
[WhiteElo "1952"]
[BlackElo "2038"]
[Annotator "NA RC"]
[PlyCount "153"]
[EventDate "2018.11.14"]
[EventType "swiss"]
[EventCountry "BRA"]
[SourceTitle "playchess.com"]
[Source "ChessBase"]
[SourceQuality "1"]
[TimeControl "5400+30"]

1. e4 {[%emt 0:00:00]} c5 {[%emt 0:00:00]} 2. Nf3 {[%emt 0:00:00]} e6 {[%emt 0:00:00]} 3. d4 {[%emt 0:00:32]} cxd4 {[%emt 0:00:00]} 4. Nxd4 {[%emt 0:00:07]} Nc6 {[%emt 0:00:09]} 5. Nc3 {[%emt 0:02:49]} Qc7 {[%emt 0:00:09]} 6. Be2 {[%emt 0:04:56]} a6 {[%emt 0:01:23]} 7. O-O {[%emt 0:00:11]} Nf6 {[%emt 0:00:13]} 8. a3 {[%emt 0:02:35]} Be7 {[%emt 0:01:24]} 9. Kh1 {[%emt 0:04:22]} O-O {[%emt 0:01:33]} 10. f4 {[%emt 0:00:39]} d6 {[%emt 0:00:26]} 11. Nf3 {[%emt 0:01:21] B84: Sicilian Scheveningen: 6 Be2 a6, lines without early Be3} (11. Be3 b5 12. Qe1 Bb7 13. Qg3 {1-0 (13) Fedorchuk,S (2650)-Guliyev,N (2507) Paris 2011}) 11... b5 {[%emt 0:03:25]} 12. Bd3 {[%emt 0:05:26]} Bb7 {[%emt 0:02:33]} 13. Qe2 {[%emt 0:00:16]} b4 $146 {[%emt 0:12:41]} ({Predecessor:} 13... Rfd8 14. h3 Rac8 15. g4 d5 16. e5 Nd7 17. g5 Nc5 {0-1 (48) Tlapa,V (1715)-Hampek,M Klatovy 1997}) 14. axb4 {[%emt 0:03:45]} Nxb4 {[%emt 0:00:30]} 15. Bd2 {[%emt 0:00:12]} Nxd3 {[%emt 0:08:23]} 16. cxd3 {[%emt 0:00:15]} d5 {[%emt 0:01:10]} 17. e5 {[%emt 0:00:51]} Nd7 {[%emt 0:00:15]} 18. Rfc1 {[%emt 0:02:40]} Qb8 {[%emt 0:02:37]} 19. Nd4 {[%emt 0:03:40]} g6 {[%emt 0:02:40]} 20. Na4 {[%emt 0:06:19]} Rc8 {[%emt 0:03:56]} 21. Be3 {[%emt 0:01:37]} Rxc1+ {[%emt 0:05:20]} 22. Rxc1 {[%emt 0:00:23]} Qe8 {[%emt 0:00:14]} 23. Rc7 {[%emt 0:06:22]} Rb8 {[%emt 0:00:48]} 24. b3 {[%emt 0:00:57]} Qd8 {[%emt 0:03:51]} 25. Qc2 {[%emt 0:05:53]} Rc8 {[%emt 0:01:02]} 26. Rxc8 {[%emt 0:00:12]} Qxc8 {[%emt 0:00:12]} 27. Qxc8+ {[%emt 0:01:58]} Bxc8 {[%emt 0:00:05]} 28. Nc6 {[%emt 0:01:06]} Ba3 {[%emt 0:02:21]} 29. Kg1 {[%emt 0:02:06]} Kf8 {[%emt 0:02:05]} 30. Kf2 {[%emt 0:00:12]} Ke8 {[%emt 0:11:06]} 31. Ke2 {[%emt 0:00:51]} Bb7 {[%emt 0:06:25]} 32. Nd4 {[%emt 0:00:54]} Be7 {[%emt 0:00:30]} 33. g3 {[%emt 0:00:27]} Kd8 {[%emt 0:00:48]} 34. Kd2 {[%emt 0:01:17]} Kc7 {[%emt 0:00:44]} 35. Kc3 {[%emt 0:00:18]} Nb8 {[%emt 0:05:41]} 36. Nc2 {[%emt 0:03:47]} Nd7 {[%emt 0:03:04]} 37. b4 {[%emt 0:02:09]} Bc8 {[%emt 0:07:32]} 38. Nd4 {[%emt 0:02:51]} Nb8 {[%emt 0:02:38]} 39. Nb3 {[%emt 0:01:29]} Nc6 {[%emt 0:00:58]} 40. Bc5 {[%emt 0:01:37]} Bd7 {[%emt 0:03:32]} 41. Bxe7 {[%emt 0:03:39]} Nxe7 {[%emt 0:00:03]} 42. Nac5 {[%emt 0:00:13]} Bc8 {[%emt 0:00:20]} 43. Nd4 {[%emt 0:00:11]} Kb6 {[%emt 0:01:10]} 44. Kb3 {[%emt 0:02:39]} Nc6 {[%emt 0:02:48]} 45. Na4+ {[%emt 0:01:59]} Kc7 {[%emt 0:00:25]} 46. Nxc6 {[%emt 0:00:28]} Kxc6 {[%emt 0:00:04]} 47. d4 {[%emt 0:00:37]} Kb5 {[%emt 0:01:16]} 48. Nc3+ {[%emt 0:01:13]} Kb6 {[%emt 0:00:17]} 49. Nd1 {[%emt 0:01:33]} Bd7 {[%emt 0:00:27]} 50. Ne3 {[%emt 0:00:18]} h5 {[%emt 0:01:38]} 51. h4 {[%emt 0:01:46]} a5 {[%emt 0:01:07]} 52. g4 {[%emt 0:00:44]} hxg4 {[%emt 0:00:59]} 53. Nxg4 {[%emt 0:00:12]} a4+ {[%emt 0:00:33]} 54. Kc3 $1 {[%emt 0:03:01]} Kb5 {[%emt 0:00:10]} 55. Ne3 {[%emt 0:00:10]} Bc6 {[%emt 0:00:15]} 56. Nc2 {[%emt 0:00:32]} a3 {[%emt 0:02:07]} 57. Nxa3+ {[%emt 0:00:33]} Ka4 {[%emt 0:00:01]} 58. Nb1 {[%emt 0:02:21]} Bb5 {[%emt 0:01:16]} 59. Nd2 {[%emt 0:00:13]} Be8 {[%emt 0:00:58]} 60. Nb3 {[%emt 0:00:24]} Ka3 $2 {[%emt 0:00:25]} (60... Kb5 $16 {is tougher.}) 61. Nc5 {[%emt 0:00:12]} Bc6 {[%emt 0:00:19]} 62. b5 {[%emt 0:02:55]} Bxb5 {[%emt 0:00:31]} 63. Nb7 {[%emt 0:00:13]} Be2 {[%emt 0:00:40]} 64. Nd6 {[%emt 0:00:11]} Bg4 {[%emt 0:00:25]} 65. Nxf7 {[%emt 0:00:36]} Ka4 {[%emt 0:00:17]} 66. Nd6 {[%emt 0:02:57]} Ka3 {[%emt 0:00:10]} 67. Ne8 {[%emt 0:00:50]} Ka4 {[%emt 0:00:44]} 68. Nf6 {[%emt 0:00:10]} Bh3 {[%emt 0:01:22]} 69. Kd3 {[%emt 0:00:25]} Kb4 $2 {[%emt 0:00:04]} (69... Kb5 70. Ke3 Kc6) 70. Ke3 {[%emt 0:00:10]} Kc4 {[%emt 0:00:23]} 71. h5 {[%emt 0:01:13]} gxh5 {[%emt 0:00:02]} 72. Nxh5 {[%emt 0:00:11]} Bg4 {[%emt 0:00:28]} 73. Ng7 {[%emt 0:00:31]} Kc3 {[%emt 0:01:37]} 74. f5 {[%emt 0:01:45]} exf5 {[%emt 0:00:09]} 75. e6 {[%emt 0:00:07]} f4+ {[%emt 0:00:30]} 76. Kxf4 {[%emt 0:00:08]} Bxe6 {[%emt 0:00:29]} 77. Nxe6 {[%emt 0:00:08]} 1-0

[Event "II Duchamp Open 2018"]
[Site "Rio de Janeiro"]
[Date "2018.11.17"]
[Round "4"]
[White "Chaves, Jorge Antonio Torre"]
[Black "Peixoto, Rudson Marinho"]
[Result "0-1"]
[ECO "B20"]
[WhiteElo "1922"]
[BlackElo "2007"]
[Annotator "NA"]
[PlyCount "140"]
[EventDate "2018.11.14"]
[EventType "swiss"]
[EventCountry "BRA"]
[SourceTitle "playchess.com"]
[Source "ChessBase"]
[SourceQuality "1"]
[TimeControl "5400+30"]

1. e4 {[%emt 0:00:14]} c5 {[%emt 0:03:28]} 2. d3 {[%emt 0:00:39]} e6 {[%emt 0:00:50]} 3. Nf3 {[%emt 0:00:23]} d5 {[%emt 0:00:27]} 4. Nbd2 {[%emt 0:00:08]} Nf6 {[%emt 0:00:31]} 5. g3 {[%emt 0:00:13]} Nc6 {[%emt 0:00:19]} 6. Bg2 {[%emt 0:00:05]} Be7 {[%emt 0:00:08]} 7. O-O {[%emt 0:00:11]} Qc7 {[%emt 0:00:18]} 8. Re1 {[%emt 0:00:25]} dxe4 {[%emt 0:00:57]} 9. dxe4 {[%emt 0:00:36]} e5 {[%emt 0:00:32]} 10. c3 {[%emt 0:02:13]} Bg4 {[%emt 0:00:12]} 11. a4 {[%emt 0:01:59]} O-O {[%emt 0:00:12]} 12. h3 {[%emt 0:00:30]} Bh5 {[%emt 0:00:28]} 13. Qc2 {[%emt 0:03:30]} Rfe8 {[%emt 0:00:52]} 14. Nc4 {[%emt 0:04:43]} h6 {[%emt 0:00:14]} 15. Nh4 {[%emt 0:01:20]} Rad8 {[%emt 0:00:29]} 16. Nf5 {[%emt 0:05:04]} Bf8 {[%emt 0:00:21]} 17. g4 {[%emt 0:02:19]} Bg6 {[%emt 0:00:09]} 18. Nce3 {[%emt 0:00:59]} Kh7 {[%emt 0:03:27]} 19. Nh4 {[%emt 0:05:25]} Rd7 {[%emt 0:00:33]} 20. Nxg6 {[%emt 0:00:31]} fxg6 {[%emt 0:00:19]} 21. Nd5 {[%emt 0:02:19]} Qd8 {[%emt 0:01:03]} 22. Be3 {[%emt 0:03:43]} Bd6 {[%emt 0:00:37]} 23. Rad1 {[%emt 0:00:22]} Ne7 {[%emt 0:03:54]} 24. Nxf6+ {[%emt 0:03:41]} gxf6 {[%emt 0:00:22]} 25. Qc1 {[%emt 0:00:45]} g5 {[%emt 0:00:18]} 26. Bf1 {[%emt 0:00:50]} Qc7 {[%emt 0:02:01]} 27. Bb5 {[%emt 0:00:30]} Nc6 {[%emt 0:00:21]} 28. h4 {[%emt 0:01:29]} a6 {[%emt 0:02:54]} 29. Bc4 {[%emt 0:01:20]} Bf8 {[%emt 0:00:36]} 30. hxg5 {[%emt 0:03:49]} fxg5 {[%emt 0:00:46]} 31. Kg2 {[%emt 0:00:19]} Red8 {[%emt 0:03:30]} 32. Be6 {[%emt 0:05:10]} Rxd1 {[%emt 0:02:03]} 33. Bf5+ {[%emt 0:00:36]} Kg7 {[%emt 0:00:23]} 34. Rxd1 {[%emt 0:00:08]} Kf6 {[%emt 0:00:46]} 35. Rd5 {[%emt 0:08:42]} Rxd5 {[%emt 0:00:32]} 36. exd5 {[%emt 0:00:05]} Ne7 {[%emt 0:00:15]} 37. Be4 {[%emt 0:00:15]} c4 {[%emt 0:00:30]} 38. Qd1 {[%emt 0:00:41]} Ng6 {[%emt 0:00:46]} 39. Qc2 {[%emt 0:05:13]} Nh4+ {[%emt 0:00:23]} 40. Kg3 {[%emt 0:01:41]} Bc5 {[%emt 0:00:16]} 41. Bc1 {[%emt 0:15:31]} Qb6 {[%emt 0:01:46]} 42. Qe2 {[%emt 0:03:05]} Ke7 {[%emt 0:01:06]} 43. Be3 {[%emt 0:04:20]} Bxe3 {[%emt 0:01:00]} 44. fxe3 {[%emt 0:00:05]} Qb3 {[%emt 0:00:45]} 45. Qf2 {[%emt 0:03:37]} Qd1 {[%emt 0:00:26]} 46. a5 {[%emt 0:01:42]} Ke8 {[%emt 0:02:54]} 47. Bc2 {[%emt 0:00:39]} Qxd5 {[%emt 0:00:52]} 48. e4 {[%emt 0:04:34]} Qc6 {[%emt 0:02:34]} 49. Qf1 {[%emt 0:03:12]} Ke7 {[%emt 0:00:27]} 50. Bb1 {[%emt 0:01:57]} Qc5 {[%emt 0:02:23]} 51. Qf2 {[%emt 0:00:48]} Qxf2+ {[%emt 0:00:27]} 52. Kxf2 {[%emt 0:00:04]} Kd6 {[%emt 0:00:21]} 53. Ba2 {[%emt 0:00:49]} Kc5 {[%emt 0:00:13]} 54. Ke3 {[%emt 0:01:13]} Ng2+ {[%emt 0:00:21]} 55. Kd2 {[%emt 0:00:48]} Nf4 {[%emt 0:00:54]} 56. Ke3 {[%emt 0:01:23]} Kb5 {[%emt 0:00:15]} 57. b3 {[%emt 0:00:36]} cxb3 {[%emt 0:00:20]} 58. Bxb3 {[%emt 0:00:10]} Kxa5 {[%emt 0:00:11]} 59. Bf7 {[%emt 0:00:15]} b5 {[%emt 0:00:21]} 60. Kd2 {[%emt 0:00:14]} Kb6 {[%emt 0:00:46]} 61. Kc2 {[%emt 0:00:28]} Kc5 {[%emt 0:00:11]} 62. Kb3 {[%emt 0:00:15]} a5 {[%emt 0:00:11]} 63. Kc2 {[%emt 0:01:25]} b4 {[%emt 0:01:11]} 64. cxb4+ {[%emt 0:01:00]} Kxb4 {[%emt 0:00:27]} 65. Bg8 {[%emt 0:00:34]} a4 {[%emt 0:00:17]} 66. Ba2 {[%emt 0:00:25]} Ne2 {[%emt 0:00:18]} 67. Kd2 {[%emt 0:00:28]} Nc3 {[%emt 0:00:29]} 68. Be6 {[%emt 0:00:36]} Nxe4+ {[%emt 0:00:34]} 69. Ke3 {[%emt 0:00:06]} Nc5 {[%emt 0:00:12]} 70. Bf7 {[%emt 0:00:16]} Kc3 {[%emt 0:00:14]} 0-1

[Event "II Duchamp Open 2018"]
[Site "Rio de Janeiro"]
[Date "2018.11.17"]
[Round "5"]
[White "Souza Neves, Andrey M."]
[Black "Kruger, Israel"]
[Result "1-0"]
[ECO "D11"]
[WhiteElo "2074"]
[BlackElo "1877"]
[Annotator "NA RC"]
[PlyCount "97"]
[EventDate "2018.11.14"]
[EventType "swiss"]
[EventCountry "BRA"]
[SourceTitle "playchess.com"]
[Source "ChessBase"]
[SourceQuality "1"]
[TimeControl "5400+30"]

{[%evp 15,97,44,44,28,40,38,39,35,90,51,105,113,141,116,125,113,125,98,32767,32767,80,45,57,4,40,28,18,49,32767,32767,11,33,50,43,135,175,281,157,225,32767,230,332,241,431,32767,32767,32767,32767,228,219,206,137,174,133,127,0,32767,32767,32767,32767,8,8,8,0,0,0,0,0,0,0,14,8,8,4,18,16,32767,32767,32767,32767,6,0,2839,2222]} 1. d4 {[%emt 0:06:14]} d5 {[%emt 0:02:33]} 2. c4 {[%emt 0:00:09]} c6 {[%emt 0:00:29]} 3. Nf3 {[%emt 0:00:09]} Nf6 {[%emt 0:00:28]} 4. e3 {[%emt 0:00:21]} g6 {[%emt 0:03:37]} 5. Nc3 {[%emt 0:01:13]} Bg7 {[%emt 0:00:08]} 6. Bd3 {[%emt 0:01:03]} dxc4 {[%emt 0:00:29]} 7. Bxc4 {[%emt 0:00:10]} O-O {[%emt 0:00:29]} 8. O-O {[%emt 0:04:44]} Bg4 {[%emt 0:00:19]} 9. h3 {[%emt 0:00:36]} Bxf3 {[%emt 0:00:20]} 10. Qxf3 {[%emt 0:00:11]} Nbd7 {[%emt 0:05:37]} 11. Rd1 {[%emt 0:02:46] LiveBook: 358 Games} a5 {[%emt 0:07:51] D94: Grünfeld: 4 Nf3 Bg7 5 e3} (11... e5 12. d5 e4 13. Nxe4 Nxe4 14. Qxe4 Nb6 15. Rb1 Qd6 16. Bb3 cxd5 17. Qd3 a5 18. a3 Qe6 19. Bd2 Rfc8 20. Be1 Rc5 21. Ba2 Nc4 22. b4 axb4 23. Bxb4 {1-0 (84) Riazantsev,A (2654)-Li,C (2735) Geneva 2017}) 12. a4 {[%emt 0:00:53]} Qc7 $146 {[%emt 0:05:58]} ({Predecessor:} 12... e5 13. d5 Qb6 14. dxc6 bxc6 15. e4 Nc5 16. Rd6 Qb4 17. Rxf6 Bxf6 18. Qxf6 Qxc4 19. Bh6 {1-0 (27) Ma,Q (2608)-Zhang,Z (2236) Shijiazhuang 2015}) 13. e4 {[%emt 0:00:56]} Rad8 {[%emt 0:00:14]} 14. e5 {[%emt 0:01:53]} Ne8 {[%emt 0:00:22]} 15. Bf4 {[%emt 0:03:24]} e6 {[%emt 0:02:13]} 16. Ne4 {[%emt 0:02:28]} Nb6 {[%emt 0:00:54]} 17. Bb3 {[%emt 0:00:58]} Nd5 {[%emt 0:01:27]} 18. Bxd5 {[%emt 0:04:54]} Rxd5 {[%emt 0:06:29]} 19. Nf6+ {[%emt 0:00:49]} Bxf6 {[%emt 0:00:10]} 20. exf6 {[%emt 0:00:07]} Nd6 {[%emt 0:00:11]} 21. Be5 {[%emt 0:03:50]} Rc8 {[%emt 0:01:13]} 22. h4 {[%emt 0:03:20]} Qd8 {[%emt 0:08:17]} 23. h5 {[%emt 0:02:19]} Nf5 {[%emt 0:07:01]} 24. hxg6 {[%emt 0:01:09]} hxg6 {[%emt 0:04:58] [#]} (24... fxg6 $14 25. Re1 Qd7) 25. Qf4 $1 {[%emt 0:01:27]} c5 {[%emt 0:00:51]} (25... Kf8 {is a better defense.}) 26. g4 {[%emt 0:13:39]} (26. Ra3 $18) 26... Nxd4 {[%emt 0:01:07]} (26... Rxd4 $16 27. Bxd4 Nxd4) 27. Kg2 {[%emt 0:02:33]} Rxe5 {[%emt 0:09:12]} 28. Qxe5 {[%emt 0:00:20]} Qd5+ {[%emt 0:00:17]} 29. Qxd5 {[%emt 0:00:08]} exd5 {[%emt 0:00:07]} 30. Ra3 {[%emt 0:04:54]} Ne6 {[%emt 0:01:46]} 31. Rb3 {[%emt 0:08:27]} Rc7 {[%emt 0:01:39]} 32. Rb5 {[%emt 0:00:51]} g5 {[%emt 0:01:14]} 33. Rh1 {[%emt 0:01:26]} ({Don't play} 33. Rxa5 Kh7 $16) 33... Nf4+ {[%emt 0:01:05]} 34. Kg3 {[%emt 0:07:35]} Ne2+ {[%emt 0:01:16] [#]} 35. Kf3 {[%emt 0:05:11]} (35. Kh2 $1 $16) 35... Nd4+ {[%emt 0:00:10]} 36. Ke3 {[%emt 0:00:07]} Nxb5 {[%emt 0:00:10]} 37. axb5 {[%emt 0:00:06]} b6 {[%emt 0:01:02]} 38. Rh5 {[%emt 0:00:55]} d4+ {[%emt 0:01:04]} 39. Ke4 {[%emt 0:04:36]} Rd7 {[%emt 0:00:27]} 40. Rxg5+ {[%emt 0:00:19]} Kf8 {[%emt 0:00:18]} 41. Rh5 {[%emt 0:00:52]} Kg8 {[%emt 0:00:01]} 42. Kd3 {[%emt 0:03:10]} Rd6 {[%emt 0:01:02]} 43. g5 {[%emt 0:01:40]} Re6 {[%emt 0:02:38]} 44. Rh1 {[%emt 0:05:41]} a4 {[%emt 0:01:07]} 45. Ra1 {[%emt 0:02:23]} Kh7 {[%emt 0:00:27]} 46. Rxa4 {[%emt 0:00:17]} Kg6 {[%emt 0:00:02]} 47. f4 {[%emt 0:00:24]} Kf5 {[%emt 0:00:32]} 48. Ra8 {[%emt 0:00:32]} Kxf4 $2 {[%emt 0:00:24] [#]} (48... Re3+ $11 49. Kc4 d3) 49. g6 $18 1-0

[Event "II Duchamp Open 2018"]
[Site "Rio de Janeiro"]
[Date "2018.11.17"]
[Round "5"]
[White "Okamura, Milton Kasuo"]
[Black "Chang, Suzana"]
[Result "0-1"]
[ECO "E91"]
[WhiteElo "2038"]
[BlackElo "1968"]
[Annotator "NA RC"]
[PlyCount "78"]
[EventDate "2018.11.14"]
[EventType "swiss"]
[EventCountry "BRA"]
[SourceTitle "playchess.com"]
[Source "ChessBase"]
[SourceQuality "1"]
[TimeControl "5400+30"]

{[%evp 20,78,76,60,76,32,39,32,52,50,84,79,63,52,45,39,41,1,38,-107,32767,-156,-91,-302,-277,-261,32767,-252,-173,-160,-99,-106,-90,-252,-170,-277,-303,-304,-119,-291,-317,32767,32767,32767,32767,32767,-403,-416,-410,-445,-469,-470,-480,-518,-426,-517,-514,-681,-644,-917,-670]} 1. d4 {[%emt 0:00:00]} Nf6 {[%emt 0:00:00]} 2. c4 {[%emt 0:00:00]} g6 {[%emt 0:00:00]} 3. Nc3 {[%emt 0:00:00]} Bg7 {[%emt 0:00:00]} 4. e4 {[%emt 0:00:19]} d6 {[%emt 0:00:00]} 5. Nf3 {[%emt 0:00:09]} O-O {[%emt 0:00:09]} 6. Be2 {[%emt 0:00:13]} Na6 {[%emt 0:00:10]} 7. O-O {[%emt 0:00:29]} e5 {[%emt 0:00:10]} 8. Be3 {[%emt 0:01:07]} Ng4 {[%emt 0:00:46]} 9. Bg5 {[%emt 0:00:30]} Qe8 {[%emt 0:00:57]} 10. d5 {[%emt 0:02:53]} h6 {[%emt 0:11:09] E94: King's Indian: Classical: 6 Be2 e5 7 0-0: Various Black 7th moves} (10... f6 11. Bd2 f5 12. Ne1 Nf6 13. f3 f4 14. Nd3 g5 15. c5 Nxc5 16. Nxc5 dxc5 17. Nb5 Qe7 18. Bc3 {0-1 (49) Shen,Y (2468)-Huang,Q (2449) Tianjin 2018}) 11. Bd2 {[%emt 0:09:50]} f5 {[%emt 0:00:31]} 12. Ne1 {[%emt 0:02:44]} (12. exf5 $16 gxf5 13. Nh4) 12... Nf6 {[%emt 0:00:19] LiveBook: 6 Games} 13. f3 {[%emt 0:00:20]} f4 {[%emt 0:11:27]} 14. Nd3 {[%emt 0:00:51]} Rf7 {[%emt 0:00:07]} 15. b4 $146 {[%emt 0:00:48]} ({Predecessor:} 15. Rc1 g5 16. b4 Bf8 17. h3 h5 18. a3 {½-½ (33) Bacso,G (2181)-Mede,I (2272) Hungary 2009}) 15... Bf8 {[%emt 0:00:09]} 16. Be1 {[%emt 0:02:43]} g5 {[%emt 0:01:00]} 17. Bf2 {[%emt 0:00:53]} Rg7 {[%emt 0:00:21]} 18. c5 {[%emt 0:02:26]} Qh5 {[%emt 0:02:57]} 19. Qe1 $2 {[%emt 0:10:43]} (19. c6 $16 {and life is bright.}) 19... g4 {[%emt 0:15:43]} 20. Bh4 {[%emt 0:26:57]} g3 {[%emt 0:01:45]} 21. Bxg3 $2 {[%emt 0:00:17]} (21. hxg3 $17 fxg3 22. Bxg3) 21... fxg3 {[%emt 0:00:24]} 22. hxg3 {[%emt 0:00:07]} Qg6 {[%emt 0:07:56]} 23. Rc1 {[%emt 0:03:30]} (23. c6 $17 {keeps fighting.}) 23... Nh5 {[%emt 0:04:12]} 24. g4 {[%emt 0:02:36]} Nf4 {[%emt 0:01:14]} 25. Nxf4 {[%emt 0:01:00]} exf4 {[%emt 0:00:08]} 26. Qf2 $2 {[%emt 0:01:13]} (26. e5 $17) 26... dxc5 {[%emt 0:02:23]} 27. b5 {[%emt 0:00:40]} (27. Bxa6 Qxa6) (27. e5 $17 {was necessary.}) 27... Nb8 {[%emt 0:00:35]} 28. e5 {[%emt 0:02:12]} h5 {[%emt 0:02:58]} (28... Nd7 $19 {has better winning chances.} 29. e6 Ne5) 29. Ne4 $2 {[%emt 0:00:54]} (29. e6 $17) 29... Nd7 {[%emt 0:01:45]} 30. e6 {[%emt 0:02:57]} Nf6 {[%emt 0:02:13]} 31. Nxf6+ {[%emt 0:01:33]} Qxf6 {[%emt 0:00:06]} 32. gxh5 {[%emt 0:00:25]} Qg5 {[%emt 0:04:30]} 33. Bc4 {[%emt 0:00:20]} Bd6 {[%emt 0:00:38]} 34. Rfe1 {[%emt 0:00:37]} b6 {[%emt 0:02:27]} 35. Rc2 {[%emt 0:02:18]} Bb7 {[%emt 0:00:15]} 36. Qd2 {[%emt 0:01:46]} Re8 {[%emt 0:01:31]} 37. a4 {[%emt 0:01:18]} Qxh5 {[%emt 0:01:14]} 38. a5 {[%emt 0:01:27]} Rg5 {[%emt 0:03:38]} 39. Rd1 {[%emt 0:00:23]} Qxf3 $19 {[%emt 0:03:51]} 0-1